bitfinex/quotes_BTCUSD_20250102
["timestamp","ask_amount","ask_price","bid_price","bid_amount"]
[1735829001349,0.00114739,97038.0,97026.0,0.206129]
[1735829001561,0.10398632,97037.0,97017.0,0.206147]
[1735829001768,0.31009332,97037.0,97033.0,0.008]
[1735829001975,0.00114739,97038.0,97033.0,0.008]
[1735829002392,0.31009432,97037.0,97033.0,0.008]
[1735829002602,0.51620232,97037.0,97033.0,0.008]
[1735829003437,0.31009732,97035.0,97033.0,0.008]
[1735829003636,0.206109,97036.0,96971.0,0.542]
[1735829003637,0.31010032,97034.0,96971.0,0.542]
[1735829003850,0.206142,97021.0,96997.0,0.206189]
[1735829004053,0.10398632,97021.0,96986.0,0.206215]
[1735829004254,0.206126,97028.0,97009.0,0.206164]
[1735829004470,0.20613,97026.0,97009.0,0.206164]
[1735829004675,0.10398632,97025.0,96982.0,0.09049968]
[1735829004878,0.0488,97024.0,96982.0,0.09049968]
[1735829005080,0.206168,97008.0,97004.0,0.000171]
[1735829005288,0.10398632,97007.0,97004.0,0.000171]
[1735829005465,0.206172,97006.0,97004.0,0.000171]
[1735829005703,0.10398632,97005.0,97004.0,0.000171]
[1735829006497,0.10413363,97005.0,97004.0,0.000171]
[1735829006753,0.00014731,97005.0,97004.0,0.000171]
[1735829007198,0.00014731,97005.0,96987.0,0.206211]
[1735829007405,0.10398632,97004.0,96980.0,0.206226]
[1735829007621,0.10398632,97004.0,96964.0,0.09049968]
[1735829008046,0.10398632,97004.0,96966.0,0.15]
[1735829008422,0.10398632,97004.0,96987.0,0.003]
[1735829008623,0.10398632,97004.0,96981.0,0.206224]
[1735829008624,0.20619,96998.0,96981.0,0.206224]
[1735829008824,0.10398632,96997.0,96981.0,0.206224]
[1735829009072,0.206206,96990.0,96968.0,0.206251]
[1735829009296,0.00014731,97005.0,96960.0,0.09049968]
[1735829009297,0.206232,96978.0,96960.0,0.09049968]
[1735829009500,0.206213,96987.0,96966.0,0.206257]
[1735829009672,0.10398632,96987.0,96959.0,0.09049968]
[1735829009919,0.206195,96996.0,96987.0,0.002]
[1735829010120,0.07954731,97005.0,96987.0,0.002]
[1735829010234,0.18353363,97005.0,96987.0,0.002]
[1735829010446,0.001,97004.0,96988.0,0.20621]
[1735829010641,0.31016532,97003.0,96981.0,0.206224]
[1735829010850,0.31016532,97003.0,96961.0,0.356268]
[1735829010851,0.206189,96999.0,96979.0,0.206228]
[1735829011060,0.001,96996.0,96973.0,0.206242]
[1735829011272,0.001,96996.0,96956.0,0.15]
[1735829011273,0.10398632,96995.0,96956.0,0.15]
[1735829011477,0.10398632,96995.0,96980.0,0.206226]
[1735829011676,0.10398632,96995.0,96958.0,0.15]
[1735829011884,0.206198,96994.0,96969.0,0.206249]
[1735829012107,0.10398632,96993.0,96969.0,0.206249]
[1735829012278,0.10398632,96993.0,96958.0,0.15]
[1735829012485,0.10398632,96993.0,96975.0,0.206238]
[1735829012798,0.10398632,96993.0,96975.0,0.206237]
[1735829013000,0.10398632,96993.0,96976.0,0.206236]
[1735829013195,0.31018732,96993.0,96972.0,0.206243]
[1735829013568,0.10398632,96993.0,96956.0,0.002]
[1735829013775,0.206227,96981.0,96973.0,0.002]
[1735829013984,0.10398632,96980.0,96962.0,0.206266]
[1735829014234,0.0457,96988.0,96975.0,0.002]
[1735829014433,0.10398632,96987.0,96975.0,0.002]
[1735829014680,0.206236,96977.0,96957.0,0.206277]
[1735829014879,0.10398632,96977.0,96961.0,0.206267]
[1735829015058,0.10398632,96976.0,96962.0,0.206265]
[1735829015261,0.01614851,96973.0,96962.0,0.206265]
[1735829015474,0.01614851,96973.0,96955.0,0.000171]
[1735829015475,0.10398632,96973.0,96955.0,0.000171]
[1735829015675,0.0457,96988.0,96955.0,0.000171]
[1735829015676,0.206247,96971.0,96955.0,0.000171]
[1735829015927,0.0457,96988.0,96955.0,0.000171]
[1735829015928,0.10398632,96970.0,96955.0,0.000171]
[1735829016413,0.206275,96958.0,96955.0,0.00066232]
[1735829016585,0.10398632,96956.0,96955.0,0.00066232]
[1735829016786,0.10398632,96956.0,96948.0,0.000171]
[1735829016787,0.206294,96949.0,96948.0,0.000171]
[1735829016985,0.206294,96949.0,96928.0,0.09049968]
[1735829016986,0.206336,96929.0,96928.0,0.09049968]
[1735829017197,0.31032232,96929.0,96928.0,0.09064716]
[1735829017403,0.56332232,96929.0,96928.0,0.09064716]
[1735829017791,0.56332232,96929.0,96928.0,0.00014748]
[1735829018006,0.1,96916.0,96882.0,0.09049968]
[1735829018207,0.206413,96893.0,96882.0,0.09049968]
[1735829018416,0.10398632,96892.0,96882.0,0.09049968]
[1735829018570,0.206417,96891.0,96882.0,0.09049968]
[1735829018766,0.10398632,96891.0,96882.0,0.09049968]
[1735829018962,0.1,96918.0,96882.0,0.09049968]
[1735829019212,0.13,96929.0,96877.0,0.18099937]
[1735829019213,0.206405,96897.0,96878.0,0.206444]
[1735829019386,0.10398632,96896.0,96882.0,0.206435]
[1735829019781,0.10398632,96896.0,96884.0,0.206432]
[1735829019977,0.10398632,96896.0,96878.0,0.206444]
[1735829020152,0.206408,96895.0,96870.0,0.20646]
[1735829020372,0.10398632,96894.0,96875.0,0.206451]
[1735829020562,0.002,96896.0,96887.0,0.206424]
[1735829020764,0.002,96896.0,96877.0,0.206445]
[1735829020922,0.10398632,96895.0,96877.0,0.206445]
[1735829021119,0.10398632,96895.0,96881.0,0.206436]
[1735829021320,0.001,96895.0,96872.0,0.0001706]
[1735829021543,0.001,96895.0,96890.0,0.4130066]
[1735829021952,0.001,96895.0,96891.0,0.10398632]
[1735829022148,0.001,96895.0,96890.0,0.2065876]
[1735829022149,0.001,96895.0,96892.0,0.206415]
[1735829022370,0.001,96895.0,96894.0,0.356411]
[1735829022599,0.001,96895.0,96894.0,0.46039732]
[1735829022826,0.001,96896.0,96895.0,0.15]
[1735829022981,0.001,96896.0,96895.0,0.30441355]
[1735829023189,0.00014723,96921.0,96920.0,0.206355]
[1735829024016,0.00014723,96921.0,96920.0,0.36008707]
[1735829024214,0.00014723,96921.0,96920.0,0.61407339]
[1735829024429,0.00014723,96921.0,96920.0,0.62307339]
[1735829024851,0.00014723,96921.0,96920.0,0.61407339]
[1735829025289,0.00014723,96921.0,96920.0,0.51008707]
[1735829025493,0.00014723,96921.0,96920.0,0.356355]
[1735829026045,0.00014723,96921.0,96920.0,0.365355]
[1735829026247,0.00014723,96921.0,96920.0,0.62617523]
[1735829026456,2.3e-07,96921.0,96920.0,0.62217523]
[1735829026665,2.3e-07,96921.0,96920.0,0.63117523]
[1735829027083,2.3e-07,96921.0,96920.0,0.62617523]
[1735829027282,2.3e-07,96921.0,96920.0,0.63117523]
[1735829027492,2.3e-07,96921.0,96920.0,0.62217523]
[1735829027714,2.3e-07,96921.0,96920.0,0.63117523]
[1735829027922,2.3e-07,96921.0,96920.0,0.52218891]
[1735829028323,2.3e-07,96921.0,96920.0,0.53118891]
[1735829028546,2.3e-07,96921.0,96920.0,0.374355]
[1735829029180,2.3e-07,96921.0,96920.0,0.365355]
[1735829029388,2.3e-07,96921.0,96920.0,0.374355]
[1735829029805,2.3e-07,96921.0,96920.0,0.009]
[1735829030026,2.3e-07,96921.0,96920.0,0.018]
[1735829030226,2.3e-07,96921.0,96920.0,0.009]
[1735829030452,0.12014185,96921.0,96920.0,0.007]
[1735829030670,0.14314185,96921.0,96920.0,0.015]
[1735829030794,0.14314185,96921.0,96920.0,0.015171]
[1735829030997,0.12022735,96921.0,96920.0,0.000171]
[1735829031446,0.12022735,96921.0,96920.0,0.003171]
[1735829032041,0.14322735,96921.0,96920.0,0.003171]
[1735829032225,0.14322735,96921.0,96920.0,0.012171]
[1735829032226,0.10407205,96921.0,96920.0,0.012171]
[1735829032728,8.573e-05,96921.0,96920.0,0.003171]
[1735829032906,0.10407205,96921.0,96920.0,0.002171]
[1735829033047,8.573e-05,96921.0,96920.0,0.002171]
[1735829033253,8.573e-05,96921.0,96920.0,0.003171]
[1735829034260,8.573e-05,96921.0,96920.0,0.209526]
[1735829035481,8.573e-05,96921.0,96920.0,0.36602187]
[1735829035684,8.573e-05,96921.0,96920.0,0.209526]
[1735829036204,8.573e-05,96921.0,96920.0,0.208526]
[1735829036414,8.573e-05,96921.0,96920.0,0.209526]
[1735829036616,8.573e-05,96921.0,96920.0,0.001171]
[1735829037038,0.10407205,96921.0,96920.0,0.009171]
[1735829037245,0.10407205,96921.0,96920.0,0.006171]
[1735829037482,8.573e-05,96921.0,96920.0,0.015171]
[1735829037686,8.573e-05,96921.0,96920.0,0.009171]
[1735829037892,8.573e-05,96921.0,96920.0,0.000171]
[1735829038090,8.573e-05,96921.0,96920.0,0.013171]
[1735829039152,0.10407205,96921.0,96920.0,0.013171]
[1735829039365,0.10407205,96921.0,96920.0,0.009171]
[1735829039584,0.10407205,96921.0,96920.0,0.000171]
[1735829039808,0.10407205,96921.0,96920.0,0.002171]
[1735829039991,0.10407205,96921.0,96920.0,0.007171]
[1735829040132,0.10407205,96921.0,96920.0,0.005171]
[1735829040350,0.10407205,96921.0,96920.0,0.000171]
[1735829040567,0.12707205,96921.0,96920.0,0.007171]
[1735829040768,0.18207205,96921.0,96920.0,0.007171]
[1735829040988,8.573e-05,96921.0,96920.0,0.007171]
[1735829042462,8.573e-05,96921.0,96920.0,0.005171]
[1735829042859,8.573e-05,96921.0,96920.0,0.155171]
[1735829043068,8.573e-05,96921.0,96920.0,0.41014182]
[1735829043269,7.3e-07,96921.0,96920.0,0.41014182]
[1735829043500,7.3e-07,96921.0,96920.0,0.41114182]
[1735829043712,7.3e-07,96921.0,96920.0,0.53314182]
[1735829043940,7.3e-07,96921.0,96920.0,0.53614182]
[1735829044152,0.0809,96979.0,96930.0,0.15]
[1735829044333,0.0491855,96994.0,96943.0,0.15]
[1735829044485,0.00049162,96973.0,96972.0,0.206245]
[1735829044925,0.00049162,96973.0,96972.0,0.356245]
[1735829045322,0.00049162,96973.0,96972.0,0.15970856]
[1735829045526,0.00049162,96973.0,96970.0,0.206247]
[1735829045900,0.00049162,96973.0,96970.0,0.412495]
[1735829046091,0.00049162,96973.0,96972.0,0.206245]
[1735829046296,0.00049162,96973.0,96972.0,0.61589509]
[1735829046922,6.2e-07,96973.0,96972.0,1.28089509]
[1735829047137,8.55e-05,96994.0,96980.0,0.1]
[1735829047377,0.00023292,96994.0,96993.0,0.3562]
[1735829047600,0.00023292,96994.0,96993.0,1.17651113]
[1735829047746,0.00023292,96994.0,96993.0,1.15351113]
[1735829047947,0.00023292,96994.0,96993.0,1.17651113]
[1735829048149,9.2e-07,96994.0,96993.0,1.17651113]
[1735829048381,9.2e-07,96994.0,96993.0,1.27651113]
[1735829048798,9.2e-07,96994.0,96993.0,1.17651113]
[1735829048974,9.2e-07,96994.0,96993.0,1.37651113]
[1735829049535,9.2e-07,96994.0,96993.0,1.27651113]
[1735829049748,9.2e-07,96994.0,96993.0,1.28351113]
[1735829049948,9.2e-07,96994.0,96993.0,1.39251113]
[1735829050123,9.2e-07,96994.0,96993.0,1.37651113]
[1735829050417,9.2e-07,96994.0,96993.0,1.27651113]
[1735829050667,9.2e-07,96994.0,96993.0,1.39451113]
[1735829051115,9.2e-07,96994.0,96993.0,1.29451113]
[1735829051532,9.2e-07,96994.0,96993.0,0.62951113]
[1735829051767,9.2e-07,96994.0,96993.0,0.37552481]
[1735829051981,9.2e-07,96994.0,96993.0,0.2242]
[1735829052186,9.2e-07,96994.0,96993.0,0.63504675]
[1735829052386,9.2e-07,96994.0,96993.0,0.47818632]
[1735829052628,9.2e-07,96994.0,96993.0,0.61890865]
[1735829052833,9.2e-07,96994.0,96993.0,0.51492233]
[1735829053024,9.2e-07,96994.0,96993.0,0.47718632]
[1735829053229,9.2e-07,96994.0,96993.0,0.71790865]
[1735829053384,9.2e-07,96994.0,96993.0,1.16890865]
[1735829053972,9.2e-07,96994.0,96993.0,1.16090865]
[1735829054223,8.642e-05,96994.0,96993.0,1.15190865]
[1735829054399,8.642e-05,96994.0,96993.0,1.16990865]
[1735829054805,8.642e-05,96994.0,96993.0,1.16090865]
[1735829055004,8.642e-05,96994.0,96993.0,1.16990865]
[1735829055556,8.642e-05,96994.0,96993.0,0.7662]
[1735829055698,8.642e-05,96994.0,96993.0,0.018]
[1735829056142,8.642e-05,96994.0,96993.0,0.2242]
[1735829056297,8.642e-05,96994.0,96993.0,0.46018632]
[1735829056495,8.642e-05,96994.0,96993.0,0.7413495]
[1735829056709,8.642e-05,96994.0,96993.0,0.7503495]
[1735829056907,4.2e-07,96994.0,96993.0,0.7413495]
[1735829057109,4.2e-07,96994.0,96993.0,0.7323495]
[1735829057350,4.2e-07,96994.0,96993.0,0.7473495]
[1735829057573,4.2e-07,96994.0,96993.0,0.7383495]
[1735829057938,4.2e-07,96994.0,96993.0,1.2833495]
[1735829058137,4.2e-07,96994.0,96993.0,1.2743495]
[1735829058351,4.2e-07,96994.0,96993.0,1.1743495]
[1735829058551,4.2e-07,96994.0,96993.0,1.1513495]
[1735829058777,4.2e-07,96994.0,96993.0,1.05636318]
[1735829058973,4.2e-07,96994.0,96993.0,0.9072]
[1735829059556,4.2e-07,96994.0,96993.0,0.018]
[1735829059768,4.2e-07,96994.0,96993.0,0.009]
[1735829060677,4.2e-07,96994.0,96993.0,0.018]
[1735829060929,4.2e-07,96994.0,96990.0,0.412412]
[1735829061141,4.2e-07,96994.0,96993.0,0.15]
[1735829061339,4.2e-07,96994.0,96993.0,0.4177965]
[1735829061817,4.2e-07,96994.0,96993.0,0.31381018]
[1735829062033,4.2e-07,96994.0,96993.0,0.31181018]
[1735829062436,0.20614,97022.0,97000.0,0.206184]
[1735829062589,0.10398632,97021.0,97000.0,0.206184]
[1735829062796,0.31027363,97021.0,97001.0,0.206183]
[1735829063192,0.206152,97016.0,96995.0,0.206196]
[1735829063392,0.31013832,97016.0,96995.0,0.206196]
[1735829063646,0.0464,97019.0,96994.0,0.206198]
[1735829063852,0.31013332,97018.0,96995.0,0.206196]
[1735829064062,0.206174,97006.0,96970.0,0.542]
[1735829064276,0.206177,97004.0,96972.0,0.206245]
[1735829064477,0.10398632,97002.0,96970.0,0.206248]
[1735829064697,0.206183,97001.0,96960.0,0.25694429]
[1735829064832,0.0757,97017.0,96972.0,0.206245]
[1735829065034,0.206167,97009.0,96973.0,0.10398632]
[1735829065285,0.206191,96998.0,96977.0,0.206232]
[1735829065456,0.10398632,96998.0,96980.0,0.206226]
[1735829065659,0.10398632,96998.0,96993.0,0.000171]
[1735829065863,8.55e-05,96994.0,96993.0,0.000171]
[1735829066043,0.10407182,96994.0,96993.0,0.000171]
[1735829068356,8.55e-05,96994.0,96993.0,0.000171]
[1735829069790,8.55e-05,96994.0,96993.0,0.002171]
[1735829069995,0.10407182,96994.0,96993.0,0.002171]
[1735829070419,0.1,96988.0,96923.0,0.542]
[1735829070592,0.023,96985.0,96956.0,0.206277]
[1735829070799,0.10398632,96984.0,96930.0,0.1]
[1735829070994,0.206222,96983.0,96961.0,0.206268]
[1735829071221,0.10398632,96982.0,96961.0,0.206268]
[1735829071398,0.10398632,96982.0,96965.0,0.206258]
[1735829071603,0.10398632,96982.0,96962.0,0.206264]
[1735829071803,0.206237,96976.0,96957.0,0.206275]
[1735829072171,0.10398632,96975.0,96947.0,0.15]
[1735829072347,0.10398632,96975.0,96961.0,0.206267]
[1735829072559,0.10398632,96975.0,96951.0,0.206288]
[1735829072805,0.10398632,96975.0,96945.0,0.00049162]
[1735829072806,0.10398632,96975.0,96961.0,0.206268]
[1735829073138,0.003,96983.0,96972.0,0.206244]
[1735829073351,0.10398632,96982.0,96954.0,0.15]
[1735829073578,0.01614768,96981.0,96968.0,0.206252]
[1735829073800,0.01614768,96981.0,96956.0,0.15]
[1735829074000,0.01614768,96981.0,96968.0,0.206253]
[1735829074201,0.1262855,96994.0,96984.0,0.206218]
[1735829074400,0.1262855,96994.0,96984.0,0.412437]
[1735829074634,0.0790855,96994.0,96988.0,0.20621]
[1735829074805,8.55e-05,96994.0,96988.0,0.41242]
[1735829075064,8.55e-05,96994.0,96984.0,0.206218]
[1735829075495,0.0020855,96994.0,96989.0,0.206207]
[1735829075703,0.0020855,96994.0,96988.0,0.206209]
[1735829076316,0.0020855,96994.0,96984.0,0.20636542]
[1735829076522,0.10607182,96994.0,96984.0,0.00014742]
[1735829076948,0.10398632,96993.0,96984.0,0.00014742]
[1735829077156,0.206212,96988.0,96984.0,0.00014742]
[1735829077363,0.0020855,96994.0,96988.0,0.002]
[1735829077364,8.55e-05,96994.0,96988.0,0.002]
[1735829077565,0.10407182,96994.0,96988.0,0.002]
[1735829077767,0.10407182,96994.0,96984.0,0.00114742]
[1735829078168,0.10398632,96993.0,96984.0,0.00014742]
[1735829078628,0.206214,96987.0,96984.0,0.00014742]
[1735829078856,0.206217,96985.0,96984.0,0.00014742]
[1735829079043,0.31020332,96985.0,96984.0,0.00214742]
[1735829079278,0.43770332,96985.0,96984.0,0.00014742]
[1735829079488,0.43770332,96985.0,96984.0,0.00114742]
[1735829079696,0.43770332,96985.0,96984.0,0.00414742]
[1735829079905,0.43770332,96985.0,96984.0,0.00114742]
[1735829080321,0.43970332,96985.0,96984.0,0.00114742]
[1735829080554,0.43770332,96985.0,96984.0,0.00114742]
[1735829080741,0.43770332,96985.0,96984.0,0.00014742]
[1735829080951,0.44170332,96985.0,96984.0,0.00014742]
[1735829081372,0.46470332,96985.0,96984.0,0.00014742]
[1735829081583,0.46370332,96985.0,96984.0,0.00014742]
[1735829081988,0.46170332,96985.0,96984.0,0.00014742]
[1735829082196,0.43870332,96985.0,96984.0,0.00014742]
[1735829082406,0.46270332,96985.0,96984.0,0.00014742]
[1735829082610,0.43970332,96985.0,96984.0,0.00014742]
[1735829082813,0.43870332,96985.0,96984.0,0.00014742]
[1735829083021,0.44170332,96985.0,96984.0,0.00014742]
[1735829083643,0.46770332,96985.0,96984.0,0.00114742]
[1735829083850,0.56170332,96985.0,96984.0,0.00014742]
[1735829084059,0.56070332,96985.0,96984.0,0.00014742]
[1735829084370,0.56370332,96985.0,96984.0,0.00014742]
[1735829084780,0.1,96981.0,96954.0,0.000171]
[1735829084995,0.173,96954.0,96906.0,0.09049968]
[1735829085194,0.023,96943.0,96910.0,0.206375]
[1735829085409,0.206313,96940.0,96910.0,0.206375]
[1735829085645,0.01615398,96951.0,96910.0,0.16579776]
[1735829086026,0.01615398,96951.0,96901.0,0.09049968]
[1735829086027,0.01615398,96951.0,96930.0,0.16579776]
[1735829086231,0.01615398,96951.0,96935.0,0.206322]
[1735829086441,0.00014712,96951.0,96938.0,0.206315]
[1735829086644,0.31027732,96950.0,96935.0,0.206322]
[1735829086845,0.10398632,96950.0,96939.0,0.206313]
[1735829087049,0.00014712,96951.0,96938.0,0.206315]
[1735829087274,0.00314712,96951.0,96935.0,0.206323]
[1735829087431,0.00314712,96951.0,96942.0,0.206307]
[1735829087637,0.00414712,96951.0,96937.0,0.15]
[1735829088072,0.00414712,96951.0,96938.0,0.206317]
[1735829088073,0.20943712,96951.0,96938.0,0.206317]
[1735829088403,0.20643712,96951.0,96938.0,0.206317]
[1735829088567,0.20643712,96951.0,96937.0,0.15]
[1735829088769,0.00114712,96951.0,96937.0,0.15]
[1735829089130,0.00114712,96951.0,96928.0,0.206338]
[1735829089131,0.00114712,96951.0,96922.0,0.15]
[1735829089329,0.00114712,96951.0,96920.0,0.000171]
[1735829089330,0.00114712,96951.0,96947.0,0.206297]
[1735829089528,0.00014712,96951.0,96938.0,0.001]
[1735829089927,0.00014712,96951.0,96946.0,0.206299]
[1735829090133,0.00014712,96951.0,96938.0,0.001]
[1735829090346,0.00014712,96951.0,96939.0,0.206315]
[1735829090740,0.00014712,96951.0,96946.0,0.206299]
[1735829090967,0.00014712,96951.0,96937.0,0.000171]
[1735829091320,0.00014712,96951.0,96942.0,0.206308]
[1735829091526,0.00014712,96951.0,96938.0,0.206316]
[1735829091738,0.00014712,96951.0,96943.0,0.206305]
[1735829091943,0.00114712,96951.0,96943.0,0.206305]
[1735829092132,0.01615123,96950.0,96947.0,0.412593]
[1735829092526,0.00014712,96951.0,96947.0,0.412593]
[1735829092924,0.00014712,96951.0,96950.0,0.15]
[1735829093134,0.00014712,96951.0,96950.0,0.30371629]
[1735829093384,0.00014712,96951.0,96949.0,0.206294]
[1735829094842,0.00014712,96951.0,96947.0,0.003]
[1735829095006,0.00014712,96951.0,96920.0,0.000171]
[1735829095221,0.10398632,96950.0,96949.0,0.004]
[1735829095758,0.31027732,96950.0,96949.0,0.004]
[1735829095958,0.31027732,96950.0,96949.0,0.007]
[1735829096175,0.31027732,96950.0,96949.0,0.004]
[1735829096396,0.31027732,96950.0,96937.0,0.20649]
[1735829096586,0.31027732,96950.0,96949.0,0.003]
[1735829096820,0.38967732,96950.0,96949.0,0.003]
[1735829097200,0.41267732,96950.0,96949.0,0.003]
[1735829097619,0.42883155,96950.0,96949.0,0.003]
[1735829098720,0.43183155,96950.0,96949.0,0.003]
[1735829099107,0.206317,96938.0,96937.0,0.000171]
[1735829099275,0.31030332,96938.0,96937.0,0.000171]
[1735829099678,0.206303,96945.0,96937.0,0.000171]
[1735829100037,0.10398632,96944.0,96937.0,0.000171]
[1735829100256,0.02615423,96950.0,96937.0,0.000171]
[1735829100471,0.02615423,96950.0,96948.0,0.206294]
[1735829100472,0.01,96950.0,96948.0,0.206294]
[1735829100882,0.01,96950.0,96937.0,0.000171]
[1735829101110,0.007,96950.0,96937.0,0.000171]
[1735829101385,0.01,96950.0,96946.0,0.412599]
[1735829101820,0.003,96950.0,96946.0,0.412599]
[1735829102044,0.00014712,96951.0,96950.0,0.206291]
[1735829102276,0.00014712,96951.0,96937.0,0.000171]
[1735829102277,0.00014712,96951.0,96937.0,0.002171]
[1735829102524,0.206317,96938.0,96937.0,0.002171]
[1735829102725,0.10398632,96938.0,96937.0,0.000171]
[1735829102937,0.00014712,96951.0,96937.0,0.000171]
[1735829103385,0.001,96950.0,96948.0,0.206294]
[1735829103592,0.00014712,96951.0,96948.0,0.206294]
[1735829104016,0.00014712,96951.0,96948.0,0.412589]
[1735829104230,0.00014712,96951.0,96949.0,0.25398632]
[1735829104406,6.2e-07,96954.0,96953.0,0.379285]
[1735829104646,6.2e-07,96954.0,96953.0,1.38420393]
[1735829104853,6.2e-07,96954.0,96953.0,1.43320393]
[1735829105082,8.55e-05,96994.0,96993.0,0.2062]
[1735829105309,8.55e-05,96994.0,96990.0,0.206206]
[1735829105510,8.55e-05,96994.0,96973.0,0.15]
[1735829105706,0.10407182,96994.0,96964.0,0.542]
[1735829105904,0.10398632,96993.0,96964.0,0.542]
[1735829106118,0.31018732,96993.0,96976.0,0.206236]
[1735829106358,8.55e-05,96994.0,96987.0,0.206212]
[1735829106589,0.00014731,96993.0,96987.0,0.206212]
[1735829106778,0.00014731,96993.0,96992.0,0.356202]
[1735829106985,8.55e-05,96994.0,96992.0,0.356202]
[1735829106986,0.206153,97016.0,96998.0,0.206188]
[1735829107229,0.00014728,97016.0,97007.0,0.206169]
[1735829107407,0.00014728,97016.0,97008.0,0.15]
[1735829107584,0.00014728,97016.0,97010.0,0.15]
[1735829107821,0.00014728,97016.0,97008.0,0.206167]
[1735829108031,0.00014728,97016.0,97011.0,0.206161]
[1735829108417,0.00014728,97016.0,97011.0,0.412322]
[1735829109272,0.00014728,97016.0,97011.0,0.002]
[1735829110317,0.00014728,97016.0,97012.0,0.412319]
[1735829111768,0.00014728,97016.0,97011.0,0.001]
[1735829111970,0.00014728,97016.0,97012.0,0.002]
[1735829112392,0.00014728,97016.0,97012.0,0.007]
[1735829112597,0.00014728,97016.0,97013.0,0.412314]
[1735829113042,0.00014728,97016.0,97012.0,0.003]
[1735829114008,0.10398632,97015.0,97012.0,0.005]
[1735829114218,0.023,97014.0,97012.0,0.005]
[1735829114423,0.00014728,97016.0,97012.0,0.003]
[1735829114711,0.00023278,97016.0,96991.0,0.692]
[1735829114946,0.00023278,97016.0,97013.0,0.416314]
[1735829115373,0.00023278,97016.0,97013.0,0.412314]
[1735829116111,0.00023278,97016.0,97013.0,0.420314]
[1735829116290,0.00023278,97016.0,97013.0,0.214157]
[1735829116496,0.00023278,97016.0,97013.0,0.008]
[1735829116909,0.10398632,97015.0,97013.0,0.008]
[1735829117128,0.00023278,97016.0,97013.0,0.012]
[1735829117645,0.00023278,97016.0,97013.0,0.008]
[1735829118056,0.00023278,97016.0,97013.0,0.01]
[1735829118278,0.00023278,97016.0,97014.0,0.206155]
[1735829120528,0.00023278,97016.0,97014.0,0.004]
[1735829121156,0.00023278,97016.0,97011.0,0.206162]
[1735829121331,0.00023278,97016.0,97014.0,0.003]
[1735829121554,0.00023278,97016.0,97014.0,0.011]
[1735829121757,0.10398632,97015.0,97014.0,0.011]
[1735829121992,0.00023278,97016.0,96977.0,0.1]
[1735829122320,0.00023278,97016.0,97014.0,0.006]
[1735829122449,0.00023278,97016.0,97014.0,0.002]
[1735829122850,0.00023278,97016.0,97014.0,0.011]
[1735829123082,0.55533932,97015.0,97014.0,0.011]
[1735829123240,0.43233932,97015.0,97014.0,0.011]
[1735829123440,0.22618632,97015.0,97014.0,0.009]
[1735829123645,0.00023278,97016.0,97014.0,0.009]
[1735829124634,0.00023278,97016.0,97008.0,0.206167]
[1735829124914,0.00023278,97016.0,97015.0,0.206153]
[1735829125674,0.00023278,97016.0,97015.0,0.356153]
[1735829125863,0.00023278,97016.0,97015.0,0.61745946]
[1735829126275,0.00023278,97016.0,97015.0,0.62445946]
[1735829126479,0.00023278,97016.0,97015.0,0.46713932]
[1735829126896,0.00023278,97016.0,97015.0,0.363153]
[1735829127297,0.00023278,97016.0,97015.0,0.366153]
[1735829127512,0.00023278,97016.0,97015.0,0.216153]
[1735829127947,0.00023278,97016.0,97015.0,0.225153]
[1735829128196,0.00023278,97016.0,97015.0,0.62704994]
[1735829128365,0.00023278,97016.0,97015.0,0.61804994]
[1735829128567,0.00023278,97016.0,97015.0,0.62404994]
[1735829129055,0.00023278,97016.0,97015.0,0.61804994]
[1735829129261,0.00023278,97016.0,97015.0,0.62704994]
[1735829129499,0.00023278,97016.0,97015.0,0.61804994]
[1735829129700,0.00023278,97016.0,97015.0,0.61504994]
[1735829129902,0.00023278,97016.0,97015.0,0.62404994]
[1735829130303,0.00023278,97016.0,97015.0,0.62409394]
[1735829130703,7.8e-07,97016.0,97015.0,1.28909394]
[1735829130908,0.01467,97040.0,97037.0,0.356106]
[1735829131113,0.01467,97040.0,97037.0,0.61636728]
[1735829131324,0.0002,97049.0,97038.0,0.692]
[1735829131535,0.00034723,97049.0,97048.0,0.356083]
[1735829131733,0.000103,97073.0,97048.0,0.356083]
[1735829131734,0.000103,97073.0,97049.0,0.542]
[1735829131920,0.000103,97073.0,97061.0,0.356055]
[1735829132686,0.000103,97073.0,97061.0,0.46004132]
[1735829133089,0.000103,97073.0,97061.0,0.61710337]
[1735829133758,5e-07,97062.0,97061.0,0.74010337]
[1735829134330,8.55e-05,97090.0,97089.0,0.355996]
[1735829134541,0.00057645,97090.0,97089.0,0.61427859]
[1735829135874,0.00048494,97090.0,97089.0,0.64627859]
[1735829136073,0.00048494,97090.0,97089.0,0.61927859]
[1735829136282,0.00048494,97090.0,97089.0,0.014]
[1735829136492,0.10447126,97090.0,97089.0,0.014]
[1735829136692,0.00048494,97090.0,97089.0,0.014]
[1735829137720,0.10447126,97090.0,97089.0,0.014]
[1735829137926,0.10447126,97090.0,97089.0,0.005]
[1735829138129,0.10447126,97090.0,97089.0,0.007]
[1735829138317,0.10447126,97090.0,97089.0,0.005]
[1735829138527,0.10447126,97090.0,97065.0,0.206046]
[1735829138528,0.206009,97084.0,97065.0,0.206046]
[1735829138730,0.10447126,97090.0,97051.0,0.15]
[1735829138731,0.00048494,97090.0,97051.0,0.15]
[1735829138851,0.00048494,97090.0,97089.0,0.001]
[1735829139773,0.00048494,97090.0,97081.0,0.206012]
[1735829139968,0.00048494,97090.0,97087.0,0.206]
[1735829140267,0.00048494,97090.0,97087.0,0.412]
[1735829140422,0.00057034,97090.0,97089.0,0.355996]
[1735829140631,0.00057034,97090.0,97089.0,1.15639014]
[1735829141615,0.00057034,97090.0,97089.0,0.756996]
[1735829142078,0.00057034,97090.0,97089.0,0.86098232]
[1735829142250,0.00057034,97090.0,97089.0,0.756996]
[1735829142449,0.00057034,97090.0,97089.0,0.62878765]
[1735829142983,0.00057034,97090.0,97089.0,0.63378765]
[1735829143589,0.00057034,97090.0,97089.0,0.005]
[1735829143758,0.00057034,97090.0,97089.0,0.25898632]
[1735829143951,0.00057034,97090.0,97089.0,0.26798632]
[1735829144153,0.00057034,97090.0,97089.0,0.25898632]
[1735829145319,0.00057034,97090.0,97089.0,0.25398632]
[1735829145523,0.00057034,97090.0,97089.0,0.96421275]
[1735829145724,0.00057034,97090.0,97089.0,0.80998632]
[1735829145899,0.00057034,97090.0,97089.0,0.65998632]